fUSD/lending_fUSD_20250502
["ID","MTS","AMOUNT","RATE_DAILY","PERIOD"]
[359647243,1746215741289,-450.0,0.0001972,2]
[359647244,1746215741317,-450.0,0.0001972,2]
[359647245,1746215741343,-450.0,0.0001972,2]
[359647246,1746215741373,-450.0,0.0001972,2]
[359647247,1746215741398,-450.0,0.0001972,2]
[359647248,1746215741422,-450.0,0.0001972,2]
[359647249,1746215741447,-450.0,0.0001972,2]
[359647250,1746215741473,-450.0,0.0001972,2]
[359647251,1746215741498,-450.0,0.0001972,2]
[359647252,1746215741522,-450.0,0.0001972,2]
[359647253,1746215741547,-912.38,0.0001972,2]
[359647254,1746215741571,-450.0,0.0001972,2]
[359647255,1746215741596,-450.0,0.0001972,2]
[359647256,1746215741622,-450.0,0.0001972,2]
[359647257,1746215741645,-450.0,0.0001972,2]
[359647258,1746215741670,-450.0,0.0001972,2]
[359647259,1746215741695,-450.0,0.0001972,2]
[359647260,1746215741720,-450.0,0.0001972,2]
[359647261,1746215741745,-450.0,0.0001972,2]
[359647262,1746215741769,-450.0,0.0001972,2]
[359647263,1746215741795,-551.6,0.0001972,2]
[359647264,1746215741820,-450.0,0.0001972,2]
[359647265,1746215741850,-450.0,0.0001972,2]
[359647266,1746215741876,-450.0,0.0001972,2]
[359647267,1746215741901,-450.0,0.0001972,2]
[359647268,1746215741926,-450.0,0.0001972,2]
[359647269,1746215741952,-450.0,0.0001972,2]
[359647270,1746215741980,-526.63613068,0.0001972,2]
[359647271,1746215742008,-450.0,0.0001972,2]
[359647272,1746215742036,-450.0,0.0001972,2]
[359647273,1746215742061,-213.66293254,0.0001972,2]
[359647274,1746215905741,-266.19838245,0.0001962,2]
[359647275,1746215920812,-218.63344187,0.0001962,2]
[359647276,1746215930080,-171.37176513,0.0001962,2]
[359647277,1746215930264,230.29406315,0.00017,2]
[359647278,1746215930285,19.70593685,0.00017,2]
[359647279,1746215931288,300.0,0.00019,2]
[359647283,1746216266386,1000.0,0.00018749,2]
[359647287,1746216433020,250.0,0.00018755,7]
[359647288,1746216538405,165.29,0.00019312,2]
[359647289,1746216576373,683.42,0.00016831,2]
[359647290,1746216576547,683.42,0.00019095,2]
[359647297,1746216632118,-415.0,0.000196,2]
[359647298,1746216632130,-160.6157526,0.000196,2]
[359647299,1746216632139,-173.76336871,0.00019619,2]
[359647300,1746216632224,-126.23663129,0.00019619,2]
[359647301,1746216632234,-330.17295075,0.00019619,2]
[359647302,1746216632246,-869.82704925,0.00019619,2]
[359647303,1746216632256,-300.0,0.00019619,2]
[359647304,1746216632266,-1530.19154772,0.0001962,2]
[359647305,1746216632275,-1232.38544007,0.0001962,2]
[359647306,1746216632329,-97.57054887,0.0001962,2]
[359647307,1746216632339,-250.0,0.0001962,2]
[359647308,1746216632349,-343.65446418,0.0001962,2]
[359647309,1746216632358,-5.77498695,0.0001962,2]
[359647332,1746216638101,-994.08306667,0.0001962,2]
[359647333,1746216638112,-200.0,0.0001962,2]
[359647334,1746216638121,-200.0,0.00019621,2]
[359647335,1746216638131,-1524.25418408,0.00019651,2]
[359647336,1746216638206,-5.93736361,0.00019651,2]
[359647337,1746216638216,-1209.83953188,0.00019651,2]
[359647341,1746216640181,-120.11645698,0.00019651,2]
[359647343,1746216640191,-1530.19154769,0.00019682,2]
[359647344,1746216640199,-1329.95598886,0.00019682,2]
[359647346,1746216640208,-5726.0,0.00019685,2]
[359647347,1746216640217,-2163.89179569,0.00019711,2]
[359647348,1746216640229,-1530.19154769,0.00019713,2]
[359647349,1746216640240,-1329.95598886,0.00019713,2]
[359647350,1746216640253,-632.544365,0.00019719,2]
[359647351,1746216640262,-450.0,0.00019719,2]
[359647352,1746216640272,-894.130531,0.00019719,2]
[359647353,1746216640281,-450.0,0.00019719,2]
[359647354,1746216640291,-450.0,0.00019719,2]
[359647355,1746216640300,-450.0,0.00019719,2]
[359647356,1746216640309,-450.0,0.00019719,2]
[359647357,1746216640319,-8210.44,0.00019719,2]
[359647358,1746216640329,-450.0,0.00019719,2]
[359647359,1746216640338,-450.0,0.00019719,2]
[359647360,1746216640348,-450.0,0.00019719,2]
[359647361,1746216640358,-450.0,0.00019719,2]
[359647362,1746216640368,-450.0,0.00019719,2]
[359647363,1746216640378,-450.0,0.00019719,2]
[359647364,1746216640397,-450.0,0.00019719,2]
[359647365,1746216640411,-450.0,0.00019719,2]
[359647366,1746216640421,-450.0,0.00019719,2]
[359647367,1746216640431,-458.3,0.00019719,2]
[359647368,1746216640441,-450.0,0.00019719,2]
[359647369,1746216640451,-450.0,0.00019719,2]
[359647370,1746216640461,-553.69,0.00019719,2]
[359647371,1746216640472,-450.0,0.00019719,2]
[359647372,1746216640481,-450.0,0.00019719,2]
[359647373,1746216640492,-450.0,0.00019719,2]
[359647374,1746216640501,-450.0,0.00019719,2]
[359647375,1746216640511,-450.0,0.00019719,2]
[359647376,1746216640521,-450.0,0.00019719,2]
[359647377,1746216640531,-2098.57,0.00019719,2]
[359647378,1746216640542,-450.0,0.00019719,2]
[359647379,1746216640552,-489.03,0.00019719,2]
[359647380,1746216640562,-522.33,0.00019719,2]
[359647381,1746216640572,-1068.42,0.00019719,2]
[359647382,1746216640582,-1171.41,0.00019719,2]
[359647383,1746216640591,-482.84,0.00019719,2]
[359647384,1746216640601,-450.0,0.00019719,2]
[359647385,1746216640611,-450.0,0.00019719,2]
[359647386,1746216640621,-450.0,0.00019719,2]
[359647387,1746216640631,-450.0,0.00019719,2]
[359647388,1746216640641,-280.25488685,0.00019719,2]
[359647389,1746216640650,-450.0,0.00019719,2]
[359647390,1746216640660,-450.0,0.00019719,2]
[359647391,1746216640670,-550.89,0.00019719,2]
[359647392,1746216640679,-450.0,0.00019719,2]
[359647393,1746216640689,-1080.47,0.00019719,2]
[359647394,1746216640699,-450.0,0.00019719,2]
[359647395,1746216640709,-450.0,0.00019719,2]
[359647396,1746216640718,-450.0,0.0001972,2]
[359647397,1746216640728,-450.0,0.0001972,2]
[359647398,1746216640737,-450.0,0.0001972,2]
[359647399,1746216640747,-450.0,0.0001972,2]
[359647400,1746216640757,-450.0,0.0001972,2]
[359647401,1746216640766,-450.0,0.0001972,2]
[359647402,1746216640777,-450.0,0.0001972,2]
[359647403,1746216640787,-450.0,0.0001972,2]
[359647404,1746216640796,-450.0,0.0001972,2]
[359647405,1746216640806,-450.0,0.0001972,2]
[359647406,1746216640816,-450.0,0.0001972,2]
[359647407,1746216640825,-949.12,0.0001972,2]
[359647408,1746216640836,-450.0,0.0001972,2]
[359647409,1746216640845,-450.0,0.0001972,2]
[359647410,1746216640855,-450.0,0.0001972,2]
[359647411,1746216640865,-450.0,0.0001972,2]
[359647412,1746216640874,-450.0,0.0001972,2]
[359647413,1746216640884,-450.0,0.0001972,2]
[359647414,1746216640894,-450.0,0.0001972,2]
[359647415,1746216640903,-450.0,0.0001972,2]
[359647416,1746216640913,-250.0,0.0001972,2]
[359647417,1746216640923,-450.0,0.0001972,2]
[359647418,1746216640932,-450.0,0.0001972,2]
[359647419,1746216640942,-450.0,0.0001972,2]
[359647420,1746216640952,-566.26,0.0001972,2]
[359647421,1746216640961,-450.0,0.0001972,2]
[359647422,1746216640970,-450.11929238,0.0001972,2]
[359647423,1746216640980,-450.0,0.0001972,2]
[359647424,1746216640990,-450.0,0.0001972,2]
[359647425,1746216641001,-450.0,0.0001972,2]
[359647426,1746216641011,-450.0,0.0001972,2]
[359647427,1746216641021,-450.0,0.0001972,2]
[359647428,1746216641030,-690.18,0.0001972,2]
[359647429,1746216641039,-450.0,0.0001972,2]
[359647430,1746216641049,-450.0,0.0001972,2]
[359647431,1746216641059,-450.0,0.0001972,2]
[359647432,1746216641069,-450.0,0.0001972,2]
[359647433,1746216641078,-450.0,0.0001972,2]
[359647434,1746216641089,-450.0,0.0001972,2]
[359647435,1746216641099,-450.0,0.0001972,2]
[359647436,1746216641108,-482.31,0.0001972,2]
[359647437,1746216641118,-450.0,0.0001972,2]
[359647438,1746216641127,-450.0,0.0001972,2]
[359647439,1746216641137,-450.0,0.0001972,2]
[359647440,1746216641146,-450.0,0.0001972,2]
[359647441,1746216641156,-450.0,0.0001972,2]
[359647442,1746216641166,-450.0,0.0001972,2]
[359647443,1746216641175,-450.0,0.0001972,2]
[359647444,1746216641185,-450.0,0.0001972,2]
[359647445,1746216641194,-486.82,0.0001972,2]
[359647446,1746216641203,-955.3,0.0001972,2]
[359647447,1746216641213,-450.0,0.0001972,2]
[359647448,1746216641223,-776.95,0.0001972,2]
[359647449,1746216641232,-450.0,0.0001972,2]
[359647450,1746216641241,-450.0,0.0001972,2]
[359647451,1746216641251,-408.15101168,0.0001972,2]
[359647452,1746216641351,-466.54,0.0001972,2]
[359647453,1746216641361,-554.71,0.0001972,2]
[359647454,1746216641370,-450.0,0.0001972,2]
[359647455,1746216641380,-567.43,0.0001972,2]
[359647456,1746216641389,-450.0,0.0001972,2]
[359647457,1746216641399,-450.0,0.0001972,2]
[359647458,1746216641413,-450.0,0.0001972,2]
[359647459,1746216641422,-450.0,0.0001972,2]
[359647460,1746216641432,-450.0,0.0001972,2]
[359647461,1746216641441,-450.0,0.0001972,2]
[359647462,1746216641451,-450.0,0.0001972,2]
[359647463,1746216641461,-450.0,0.0001972,2]
[359647464,1746216641471,-450.0,0.0001972,2]
[359647465,1746216641481,-660.43,0.0001972,2]
[359647466,1746216641491,-450.0,0.0001972,2]
[359647467,1746216641500,-450.0,0.0001972,2]
[359647468,1746216641509,-450.0,0.0001972,2]
[359647469,1746216641519,-450.0,0.0001972,2]
[359647470,1746216641528,-450.0,0.0001972,2]
[359647471,1746216641537,-450.0,0.0001972,2]
[359647472,1746216641546,-450.0,0.0001972,2]
[359647473,1746216641556,-237.82795749,0.0001972,2]
[359647474,1746216641565,-450.0,0.0001972,2]
[359647475,1746216641575,-450.0,0.0001972,2]
[359647476,1746216641584,-450.0,0.0001972,2]
[359647477,1746216641594,-450.0,0.0001972,2]
[359647478,1746216641603,-450.0,0.0001972,2]
[359647479,1746216641612,-733.13,0.0001972,2]
[359647480,1746216641621,-450.0,0.0001972,2]
[359647481,1746216641630,-1178.86,0.0001972,2]
[359647482,1746216641639,-511.12,0.0001972,2]
[359647483,1746216641650,-450.0,0.0001972,2]
[359647484,1746216641659,-450.0,0.0001972,2]
[359647485,1746216641668,-450.0,0.0001972,2]
[359647486,1746216641678,-450.0,0.0001972,2]
[359647487,1746216641687,-450.0,0.0001972,2]
[359647488,1746216641697,-450.0,0.0001972,2]
[359647489,1746216641706,-450.0,0.0001972,2]
[359647490,1746216641717,-450.0,0.0001972,2]
[359647491,1746216641729,-450.0,0.0001972,2]
[359647492,1746216641739,-450.0,0.0001972,2]
[359647493,1746216641748,-450.0,0.0001972,2]
[359647494,1746216641759,-450.0,0.0001972,2]
[359647495,1746216641768,-629.36,0.0001972,2]
[359647496,1746216641778,-450.0,0.0001972,2]
[359647497,1746216641787,-450.0,0.0001972,2]
[359647498,1746216641796,-643.25,0.0001972,2]
[359647499,1746216641806,-450.0,0.0001972,2]
[359647500,1746216641816,-450.0,0.0001972,2]
[359647501,1746216641826,-570.57214443,0.0001972,2]
[359647502,1746216641836,-450.0,0.0001972,2]
[359647503,1746216641845,-1616.69,0.0001972,2]
[359647504,1746216641855,-450.0,0.0001972,2]
[359647505,1746216641865,-450.0,0.0001972,2]
[359647506,1746216641874,-450.0,0.0001972,2]
[359647507,1746216641883,-450.0,0.0001972,2]
[359647508,1746216641893,-450.0,0.0001972,2]
[359647509,1746216641902,-477.67,0.0001972,2]
[359647510,1746216641911,-450.0,0.0001972,2]
[359647511,1746216641920,-798.07,0.0001972,2]
[359647512,1746216641929,-450.0,0.0001972,2]
[359647513,1746216641938,-450.0,0.0001972,2]
[359647514,1746216641948,-450.0,0.0001972,2]
[359647515,1746216641957,-450.0,0.0001972,2]
[359647516,1746216641966,-450.0,0.0001972,2]
[359647517,1746216641975,-610.67,0.0001972,2]
[359647518,1746216641984,-450.0,0.0001972,2]
[359647519,1746216641994,-450.0,0.0001972,2]
[359647520,1746216642003,-450.0,0.0001972,2]
[359647521,1746216642012,-564.99,0.0001972,2]
[359647522,1746216642022,-450.0,0.0001972,2]
[359647523,1746216642031,-450.0,0.0001972,2]
[359647524,1746216642041,-608.33,0.0001972,2]
[359647525,1746216642050,-219.28933762,0.0001972,2]
[359647526,1746216642059,-450.0,0.0001972,2]
[359647527,1746216642068,-450.0,0.0001972,2]
[359647528,1746216642078,-450.0,0.0001972,2]
[359647529,1746216642088,-450.0,0.0001972,2]
[359647530,1746216642098,-450.0,0.0001972,2]
[359647531,1746216642107,-450.0,0.0001972,2]
[359647532,1746216642116,-781.98,0.0001972,2]
[359647533,1746216642126,-450.0,0.0001972,2]
[359647534,1746216642135,-450.0,0.0001972,2]
[359647535,1746216642150,-450.0,0.0001972,2]
[359647536,1746216642165,-450.0,0.0001972,2]
[359647537,1746216642174,-450.0,0.0001972,2]
[359647538,1746216642184,-450.0,0.0001972,2]
[359647539,1746216642193,-450.0,0.0001972,2]
[359647540,1746216642202,-655.08,0.0001972,2]
[359647541,1746216642212,-450.0,0.0001972,2]
[359647542,1746216642221,-791.52,0.0001972,2]
[359647543,1746216642231,-450.0,0.0001972,2]
[359647544,1746216642240,-1908.79,0.0001972,2]
[359647545,1746216642250,-450.0,0.0001972,2]
[359647546,1746216642259,-781.37,0.0001972,2]
[359647547,1746216642269,-450.0,0.0001972,2]
[359647548,1746216642278,-655.32,0.0001972,2]
[359647549,1746216642287,-450.0,0.0001972,2]
[359647550,1746216642300,-450.0,0.0001972,2]
[359647551,1746216642309,-552.46,0.0001972,2]
[359647552,1746216642319,-450.0,0.0001972,2]
[359647553,1746216642328,-698.66,0.0001972,2]
[359647554,1746216642338,-1726.33,0.0001972,2]
[359647555,1746216642347,-450.0,0.0001972,2]
[359647556,1746216642356,-525.24,0.0001972,2]
[359647557,1746216642366,-845.97,0.0001972,2]
[359647558,1746216642375,-450.0,0.0001972,2]
[359647559,1746216642384,-571.99,0.0001972,2]
[359647560,1746216642394,-450.0,0.0001972,2]
[359647561,1746216642404,-1234.52,0.0001972,2]
[359647562,1746216642415,-450.0,0.0001972,2]
[359647563,1746216642425,-450.0,0.0001972,2]
[359647564,1746216642434,-450.0,0.0001972,2]
[359647565,1746216642443,-450.0,0.0001972,2]
[359647566,1746216642452,-450.0,0.0001972,2]
[359647567,1746216642461,-450.0,0.0001972,2]
[359647568,1746216642471,-808.68,0.0001972,2]
[359647569,1746216642481,-450.0,0.0001972,2]
[359647570,1746216642490,-450.0,0.0001972,2]
[359647571,1746216642500,-892.53,0.0001972,2]
[359647572,1746216642509,-450.0,0.0001972,2]
[359647573,1746216642519,-450.0,0.0001972,2]
[359647574,1746216642527,-450.0,0.0001972,2]
[359647575,1746216642538,-450.0,0.0001972,2]
[359647576,1746216642546,-450.0,0.0001972,2]
[359647577,1746216642556,-450.0,0.0001972,2]
[359647578,1746216642565,-781.54,0.0001972,2]
[359647579,1746216642575,-450.0,0.0001972,2]
[359647580,1746216642584,-450.0,0.0001972,2]
[359647581,1746216642593,-450.0,0.0001972,2]
[359647582,1746216642603,-450.0,0.0001972,2]
[359647583,1746216642612,-3973.35,0.0001972,2]
[359647584,1746216642621,-450.0,0.0001972,2]
[359647585,1746216642630,-450.0,0.0001972,2]
[359647586,1746216642639,-450.0,0.0001972,2]
[359647587,1746216642648,-450.0,0.0001972,2]
[359647588,1746216642658,-679.73,0.0001972,2]
[359647589,1746216642670,-987.32,0.0001972,2]
[359647590,1746216642680,-566.26,0.0001972,2]
[359647591,1746216642689,-450.0,0.0001972,2]
[359647592,1746216642698,-4582.09,0.0001972,2]
[359647593,1746216642707,-830.82,0.0001972,2]
[359647594,1746216642716,-450.0,0.0001972,2]
[359647595,1746216642726,-450.0,0.0001972,2]
[359647596,1746216642735,-1042.83,0.0001972,2]
[359647597,1746216642746,-1011.96,0.0001972,2]
[359647598,1746216642755,-450.0,0.0001972,2]
[359647599,1746216642764,-4207.35,0.0001972,2]
[359647600,1746216642774,-6326.37,0.0001972,2]
[359647601,1746216642783,-450.0,0.0001972,2]
[359647602,1746216642792,-450.0,0.0001972,2]
[359647603,1746216642801,-450.0,0.0001972,2]
[359647604,1746216642811,-508.53,0.0001972,2]
[359647605,1746216642820,-450.0,0.0001972,2]
[359647606,1746216642829,-491.33,0.0001972,2]
[359647607,1746216642838,-450.0,0.0001972,2]
[359647608,1746216642847,-1274.2,0.0001972,2]
[359647609,1746216642858,-302.32396757,0.0001972,2]
[359647610,1746216642867,-450.0,0.0001972,2]
[359647611,1746216642877,-450.0,0.0001972,2]
[359647612,1746216642886,-450.0,0.0001972,2]
[359647613,1746216642895,-490.67,0.0001972,2]
[359647614,1746216642904,-450.0,0.0001972,2]
[359647615,1746216642913,-458.48,0.0001972,2]
[359647616,1746216642923,-497.76,0.0001972,2]
[359647617,1746216642931,-450.0,0.0001972,2]
[359647618,1746216642940,-450.0,0.0001972,2]
[359647619,1746216642949,-492.61,0.0001972,2]
[359647620,1746216642959,-524.4,0.0001972,2]
[359647622,1746216642968,-450.0,0.0001972,2]
[359647623,1746216642978,-450.0,0.0001972,2]
[359647624,1746216642987,-522.10119627,0.0001972,2]
[359647625,1746216642996,-616.57,0.0001972,2]
[359647626,1746216643005,-472.65,0.0001972,2]
[359647627,1746216643015,-554.09941886,0.0001972,2]
[359647628,1746216643025,-4522.28,0.0001972,2]
[359647629,1746216643034,-215.66564025,0.0001972,2]
[359647631,1746216643043,-1011.25,0.0001972,2]
[359647632,1746216643052,-1679.64,0.0001972,2]
[359647633,1746216643062,-450.0,0.0001972,2]
[359647634,1746216643071,-544.82,0.0001972,2]
[359647635,1746216643079,-450.0,0.0001972,2]
[359647636,1746216643086,-92675.97,0.0001972,2]
[359647637,1746216643094,-450.0,0.0001972,2]
[359647638,1746216643100,-450.0,0.0001972,2]
[359647639,1746216643107,-450.0,0.0001972,2]
[359647640,1746216643114,-450.0,0.0001972,2]
[359647641,1746216643121,-692.54,0.0001972,2]
[359647642,1746216643128,-640.27,0.0001972,2]
[359647644,1746216643134,-450.0,0.0001972,2]
[359647645,1746216643142,-482.91,0.0001972,2]
[359647646,1746216643151,-487.74,0.0001972,2]
[359647647,1746216643161,-624.95,0.0001972,2]
[359647648,1746216643170,-450.0,0.0001972,2]
[359647649,1746216643181,-5388.74,0.0001972,2]
[359647650,1746216643190,-450.0,0.0001972,2]
[359647651,1746216643201,-113908.83,0.0001972,2]
[359647652,1746216643211,-724.04,0.0001972,2]
[359647653,1746216643221,-30037.28,0.0001972,2]
[359647654,1746216643233,-450.0,0.0001972,2]
[359647655,1746216643242,-576.18,0.0001972,2]
[359647656,1746216643251,-562.69,0.0001972,2]
[359647657,1746216643261,-2369.61,0.0001972,2]
[359647658,1746216643271,-573.02,0.0001972,2]
[359647659,1746216643281,-1950.51,0.0001972,2]
[359647660,1746216643290,-450.0,0.0001972,2]
[359647661,1746216643299,-450.0,0.0001972,2]
[359647662,1746216643308,-450.0,0.0001972,2]
[359647663,1746216643317,-450.0,0.0001972,2]
[359647664,1746216643327,-450.0,0.0001972,2]
[359647665,1746216643336,-450.0,0.0001972,2]
[359647666,1746216643345,-450.0,0.0001972,2]
[359647667,1746216643354,-450.0,0.0001972,2]
[359647668,1746216643363,-16828.51,0.0001972,2]
[359647669,1746216643372,-450.0,0.0001972,2]
[359647670,1746216643381,-450.0,0.0001972,2]
[359647671,1746216643390,-450.0,0.0001972,2]
[359647672,1746216643398,-516.0,0.0001972,2]
[359647673,1746216643410,-471.53,0.0001972,2]
[359647674,1746216643419,-450.0,0.0001972,2]
[359647675,1746216643428,-537.23,0.0001972,2]
[359647676,1746216643437,-471.29,0.0001972,2]
[359647677,1746216643447,-1268.12,0.0001972,2]
[359647678,1746216643455,-450.0,0.0001972,2]
[359647679,1746216643464,-994.06,0.0001972,2]
[359647680,1746216643474,-459.57,0.0001972,2]
[359647681,1746216643483,-562.81,0.0001972,2]
[359647682,1746216643492,-450.0,0.0001972,2]
[359647683,1746216643502,-450.0,0.0001972,2]
[359647684,1746216643511,-450.0,0.0001972,2]
[359647685,1746216643519,-450.0,0.0001972,2]
[359647686,1746216643529,-450.0,0.0001972,2]
[359647687,1746216643537,-832.02,0.0001972,2]
[359647688,1746216643546,-1875.44,0.0001972,2]
[359647690,1746216643556,-450.0,0.0001972,2]
[359647691,1746216643566,-450.0,0.0001972,2]
[359647692,1746216643576,-450.0,0.0001972,2]
[359647693,1746216643586,-450.0,0.0001972,2]
[359647694,1746216643595,-450.0,0.0001972,2]
[359647695,1746216643606,-2514.64,0.0001972,2]
[359647696,1746216643615,-544.36,0.0001972,2]
[359647697,1746216643625,-450.0,0.0001972,2]
[359647698,1746216643635,-450.0,0.0001972,2]
[359647699,1746216643644,-450.0,0.0001972,2]
[359647700,1746216643654,-450.0,0.0001972,2]
[359647701,1746216643663,-1100.32,0.0001972,2]
[359647702,1746216643673,-450.0,0.0001972,2]
[359647703,1746216643684,-500.0,0.0001972,2]
[359647704,1746216643694,-3227.65,0.0001972,2]
[359647705,1746216643705,-450.0,0.0001972,2]
[359647706,1746216643714,-450.0,0.0001972,2]
[359647707,1746216643723,-450.0,0.0001972,2]
[359647708,1746216643732,-450.0,0.0001972,2]
[359647709,1746216643742,-555.5,0.0001972,2]
[359647710,1746216643751,-739.49,0.0001972,2]
[359647711,1746216643760,-450.0,0.0001972,2]
[359647712,1746216643769,-522.39,0.0001972,2]
[359647713,1746216643779,-1505.27,0.0001972,2]
[359647714,1746216643788,-755.37,0.0001972,2]
[359647715,1746216643797,-2296.46,0.0001972,2]
[359647716,1746216643806,-450.0,0.0001972,2]
[359647717,1746216643815,-607.36,0.0001972,2]
[359647718,1746216643825,-450.0,0.0001972,2]
[359647719,1746216643834,-793.61,0.0001972,2]
[359647720,1746216643843,-1626.07,0.0001972,2]
[359647721,1746216643852,-450.0,0.0001972,2]
[359647722,1746216643862,-544.22,0.0001972,2]
[359647723,1746216643871,-301.18044399,0.0001972,2]
[359647724,1746216643880,-450.0,0.0001972,2]
[359647725,1746216643890,-450.0,0.0001972,2]
[359647726,1746216643899,-450.0,0.0001972,2]
[359647727,1746216643908,-616.88,0.0001972,2]
[359647728,1746216643917,-450.0,0.0001972,2]
[359647729,1746216643926,-282.44482249,0.0001972,2]
[359647730,1746216643936,-450.0,0.0001972,2]
[359647731,1746216643945,-334.33492292,0.00019721,2]
[359647732,1746216643954,-471.0796644,0.00019721,2]
[359647733,1746216643964,-450.0,0.00019721,2]
[359647734,1746216643973,-450.0,0.00019721,2]
[359647735,1746216643982,-584.94,0.00019721,2]
[359647736,1746216643992,-450.0,0.00019721,2]
[359647737,1746216644001,-450.0,0.00019721,2]
[359647738,1746216644010,-450.0,0.00019721,2]
[359647739,1746216644020,-450.0,0.00019721,2]
[359647740,1746216644029,-450.0,0.00019721,2]
[359647741,1746216644039,-450.0,0.00019721,2]
[359647742,1746216644049,-450.0,0.00019721,2]
[359647743,1746216644058,-450.0,0.00019721,2]
[359647744,1746216644068,-450.0,0.00019721,2]
[359647745,1746216644078,-450.0,0.00019721,2]
[359647746,1746216644088,-450.0,0.00019721,2]
[359647747,1746216644097,-597.29392894,0.00019721,2]
[359647748,1746216644106,-450.0,0.00019721,2]
[359647749,1746216644115,-820.15,0.00019721,2]
[359647750,1746216644125,-450.0,0.00019721,2]
[359647751,1746216644134,-450.0,0.00019721,2]
[359647752,1746216644145,-450.0,0.00019721,2]
[359647753,1746216644154,-603.93,0.00019721,2]
[359647754,1746216644164,-479.878237,0.00019721,2]
[359647755,1746216644173,-504.41864297,0.00019721,2]
[359647756,1746216644183,-450.0,0.00019721,2]
[359647757,1746216644192,-1096.67,0.00019721,2]
[359647758,1746216644202,-450.0,0.00019721,2]
[359647759,1746216644211,-450.0,0.00019721,2]
[359647760,1746216644221,-509.35,0.00019721,2]
[359647761,1746216644231,-450.0,0.00019721,2]
[359647762,1746216644240,-450.0,0.00019721,2]
[359647763,1746216644250,-450.0,0.00019721,2]
[359647764,1746216644259,-300.0,0.00019721,2]
[359647765,1746216644269,-552.68,0.00019721,2]
[359647766,1746216644278,-450.0,0.00019721,2]
[359647767,1746216644287,-450.0,0.00019721,2]
[359647768,1746216644297,-237.0578191,0.00019721,2]
[359647769,1746216644306,-911.99,0.00019721,2]
[359647770,1746216644315,-450.0,0.00019721,2]
[359647771,1746216644325,-450.0,0.00019721,2]
[359647772,1746216644335,-450.0,0.00019721,2]
[359647773,1746216644344,-450.0,0.00019721,2]
[359647774,1746216644354,-695.85,0.00019721,2]
[359647775,1746216644363,-450.0,0.00019721,2]
[359647776,1746216644373,-450.0,0.00019721,2]
[359647777,1746216644383,-551.31,0.00019721,2]
[359647778,1746216644393,-450.0,0.00019721,2]
[359647779,1746216644402,-450.0,0.00019721,2]
[359647780,1746216644415,-450.0,0.00019721,2]
[359647781,1746216644425,-450.0,0.00019721,2]
[359647782,1746216644434,-2761.53,0.00019721,2]
[359647783,1746216644443,-450.0,0.00019721,2]
[359647784,1746216644453,-450.0,0.00019721,2]
[359647785,1746216644462,-450.0,0.00019721,2]